Cogmind - Beta 17 @@@ ROGUE MODE // 2026.06.25 @ 20:36:56 Player: Dull Result: Destroyed by G-34 Mercenary with Small Laser Performance ------------- Evolutions (0) 0 Regions Visited (1) 200 Robots Destroyed (7) 35 Value Destroyed (137) 137 Prototype IDs (0) 0 Alien Tech Used (0) 0 Bonus (0) 0 TOTAL SCORE: 372 Bonus ------- None Cogmind --------- Core Integrity 0/250 Matter 275/300 Energy 160/160 System Corruption 0% Temperature Cool (15) Movement Treading (240) Ox1 Location -10/Materials Parts ------- > --- POWER (1) -------- Light Nuclear Core > --- PROPULSION (2) --- Light Treads Light Treads > --- UTILITY (2) ------ High-capacity Storage Unit Light Armor Plating > --- WEAPON (2) ------- Small Laser Light Assault Rifle > --- INVENTORY (20) --- Ion Engine Ion Engine Light Ion Engine Light Ion Engine Light Ion Engine Wheel Structural Scanner Visual Processing Unit Terrain Scanner Small Laser Beam Cannon Grenade Launcher Grenade Launcher Peak State ------------ > --- POWER ------------ Light Nuclear Core > --- PROPULSION ------- Light Treads Light Treads > --- UTILITY ---------- High-capacity Storage Unit Light Armor Plating > --- WEAPON ----------- Small Laser Light Assault Rifle > --- INVENTORY -------- Ion Engine Ion Engine Light Ion Engine Light Ion Engine Light Ion Engine Wheel Structural Scanner Terrain Scanner Small Laser Beam Cannon [Rating: 10] Favorites ----------- Power Light Nuclear Core Engine Light Ion Engine Power Core Light Nuclear Core Propulsion Light Treads Treads Light Treads Leg Aluminum Leg Wheel Wheel Utility High-capacity Storage Unit Storage High-capacity Storage Unit Protection Light Armor Plating Weapon Small Laser Energy Gun Small Laser Ballistic Gun Light Assault Rifle Build | -11 -10 ------- Run | Yrd Mat Slots Evolved . | . . Power . | . . Propulsion . | . . Utility . | . . Weapon . | . . Parts Attached 12 | . 12 Power 2 | . 2 Engine 1 | . 1 Core 1 | . 1 Reactor . | . . Propulsion 4 | . 4 Treads 2 | . 2 Leg . | . . Wheel 2 | . 2 Hover . | . . Flight . | . . Utility 2 | . 2 Device . | . . Storage 1 | . 1 Processor . | . . Hackware . | . . Protection 1 | . 1 Artifact . | . . Weapon 4 | . 4 Energy Gun 2 | . 2 Energy Cannon . | . . Ballistic Gun 2 | . 2 Ballistic Cannon . | . . Launcher . | . . Special Weapon . | . . Impact Weapon . | . . Slashing Weapon . | . . Piercing Weapon . | . . Special Melee Weapon . | . . Unidentified Prototypes . | . . Parts Lost 9 | . 9 Power 2 | . 2 Propulsion 4 | . 4 Utility . | . . Weapon 3 | . 3 Highest Loss Streak 9 | . 9 To Critical Strikes . | . . Average Backups 7 | . 7 Power 2 | . 2 Propulsion 1 | . 1 Utility 1 | . 1 Weapon 2 | . 2 Tool/Special . | . . Unused Backups 15 | . 15 Power 6 | . 6 Propulsion 3 | . 3 Utility 3 | . 3 Weapon 3 | . 3 Tool/Special . | . . Average Slot Usage (%) 82 | . 82 Engine 2 | . 2 Core 9 | . 9 Treads 21 | . 21 Leg 4 | . 4 Storage 17 | . 17 Protection 6 | . 6 Energy Gun 15 | . 15 Ballistic Gun 2 | . 2 Peak Build Rating 10 | . 10 Average Rating 7 | . 7 On Entrance 6 | 6 6 Avg Prop Armor Cover (%) 12 | . 12 Naked Turns . | . . Heaviest Build 51 | 11 51 Greatest Support 40 | 20 40 Greatest Overweight (x) 1 | . 1 Average Overweight (x) . | . . Largest Inventory Capacity 20 | . 20 Average Capacity 16 | . 16 Most Carried 13 | . 13 Average Carried 6 | . 6 Final Capacity 20 | 8 20 Final Carried 13 | 6 13 Class Distribution -------------------- 100% | Mutant Dominant Class ---------------- Mutant | -10/Materials Resources | -11 -10 ----------- Run | Yrd Mat Matter Collected 283 | 200 83 Remotely . | . . Salvage Created 164 | . 164 Parts 14 | . 14 Haulers Intercepted . | . . Recyclers Shooed . | . . Parts Field Recycled . | . . Retrieved Matter . | . . Parts Self-Destructed . | . . Prevented . | . . Parts Restored . | . . Kills | -11 -10 ------- Run | Yrd Mat Combat Hostiles Destroyed 6 | . 6 Guns 6 | . 6 Classes Destroyed 3 | . 3 Watcher 1 | . 1 Swarmer 4 | . 4 Grunt 2 | . 2 Best Kill Streak 3 | . 3 Combat Bots Only 3 | . 3 Max Kills in Single Turn 1 | . 1 Gunslinging . | . . Exploded . | . . Melee . | . . Uniques/NPCs Destroyed . | . . Combat | -11 -10 -------- Run | Yrd Mat Hostile Shots Fired 135 | . 135 Missed 32 | . 32 Hits 103 | . 103 Projectile 103 | . 103 Critical Strikes 1 | . 1 Damage Taken 970 | . 970 Core 260 | . 260 Absorbed by Shields . | . . Core Remaining (%) 100 | 100 . Volleys Fired 47 | . 47 Largest 2 | . 2 Hottest 90 | . 90 Shots Fired 62 | . 62 Gun 62 | . 62 Cannon . | . . Launcher . | . . Special . | . . Kinetic 15 | . 15 Thermal 47 | . 47 Explosive . | . . Electromagnetic . | . . Robot Hit Streak 6 | . 6 Robot Miss Streak 4 | . 4 Penetration Max . | . . Secondary Targets 1 | . 1 Max Gunslinging Chain 1 | . 1 Shots Hit Robots 30 | . 30 Core Hits 11 | . 11 Critical Kills . | . . Critical Parts Destroyed . | . . Critical Strikes . | . . Melee Attacks . | . . Impact . | . . Slashing . | . . Piercing . | . . Sneak Attacks . | . . Combat Hostiles . | . . Follow-up Attacks . | . . Damage Inflicted 315 | . 315 Guns 315 | . 315 Cannons . | . . Explosions . | . . Melee . | . . Ramming . | . . Kinetic 75 | . 75 Thermal 240 | . 240 Explosive . | . . Electromagnetic . | . . Impact . | . . Slashing . | . . Piercing . | . . Highest Corruption . | . . Average Corruption . | . . Corruption Purged . | . . Corruption Blocked . | . . Overload Shots . | . . Overflow Damage . | . . Projectiles . | . . Explosions . | . . Melee . | . . Knockbacks . | . . Impact . | . . Kinetic . | . . Secondary . | . . Self-Inflicted Damage . | . . Shots . | . . Rammed . | . . Targets Rammed . | . . Kicked . | . . Crushed . | . . Highest Temperature 368 | . 368 Average Temperature 139 | . 139 Received Heat Transfer 195 | . 195 Effects 2 | . 2 Interference 1 | . 1 Damage (minor) 1 | . 1 Siege Activations . | . . Martial Activations . | . . Shielding Activations . | . . Robots Disrupted . | . . Combat Hostiles . | . . Robots Corrupted . | . . Combat Hostiles . | . . Parts Fried . | . . Impact Corruptions . | . . Robots Melted . | . . Combat Hostiles . | . . Parts Melted . | . . Heat Transferred 573 | . 573 Parts Sabotaged . | . . Parts Stolen . | . . Parts Stripped . | . . Power Chain Reactions . | . . Alert | -11 -10 ------- Run | Yrd Mat Maximum Alert Level . | . . Low Security (%) 100 | . 100 Level 1 . | . . Level 2 . | . . Level 3 . | . . Level 4 . | . . Level 5 . | . . High Security . | . . Max Security . | . . Peak Influence 50 | . 50 Initial . | . . Average 3 | . 3 Influence Increases 152 | . 152 Destroy 0b10 Robot/C 120 | . 120 Destroy 0b10 Robot/NC 5 | . 5 Destroy Leader 22 | . 22 Successful Hack 5 | . 5 Influence Decreases 152 | . 152 Time Decay 72 | . 72 Lost Part 80 | . 80 Squads Dispatched . | . . Investigation . | . . Extermination . | . . Reinforcement . | . . Assault . | . . Garrison . | . . Intercept . | . . Searches Triggered . | . . Construction Impeded . | . . Haulers Reinforced . | . . Active Scanning Responses . | . . Cargo Convoy Interrupts . | . . Stealth | -11 -10 --------- Run | Yrd Mat Distress Signals . | . . Communications Jammed . | . . Distress Signals . | . . Times Spotted 13 | . 13 Peak Tracking Total 8 | . 8 Tactical Retreats . | . . Traps | -11 -10 ------- Run | Yrd Mat Traps Triggered . | . . Indirectly . | . . Trap Hack Attempts . | . . Triggered . | . . Disarmed . | . . Reprogrammed . | . . Reused . | . . Traps Extracted . | . . Installed . | . . Triggered . | . . Machines | -11 -10 ---------- Run | Yrd Mat Machines Disabled . | . . Max in Single Turn . | . . Machines Repaired . | . . Machines Dismantled . | . . Machines Sabotaged . | . . Overloaded Fab Kills . | . . Hacking | -11 -10 --------- Run | Yrd Mat Machines Accessed 2 | . 2 Terminals 2 | . 2 Fabricators . | . . Repair Stations . | . . Recycling Units . | . . Scanalyzers . | . . Garrison Access . | . . Total Hacks 7 | . 7 Successful 4 | . 4 Failed 3 | . 3 Catastrophic . | . . Database Lockouts . | . . Manual . | . . Terminals 7 | . 7 Fabricators . | . . Repair Stations . | . . Recycling Units . | . . Scanalyzers . | . . Garrison Access . | . . Terminal Hacks 4 | . 4 Record 1 | . 1 Alert Level 1 | . 1 Locate Traps 1 | . 1 Zone Layout 1 | . 1 Fabricator Hacks . | . . Repair Station Hacks . | . . Recycling Unit Hacks . | . . Scanalyzer . | . . Garrison Access Hacks . | . . Unauthorized Hacks . | . . Terminals . | . . Fabricators . | . . Repair Stations . | . . Recycling Units . | . . Scanalyzers . | . . Garrison Access . | . . Data Cores Recovered . | . . Used . | . . Hacking Detections 1 | . 1 Full Trace Events . | . . Feedback Events . | . . Feedback Blocked . | . . Robot Schematics Acquired . | . . Robots Built . | . . Authchips . | . . Time . | . . Total Robot Build Rating . | . . Part Schematics Acquired . | . . Parts Built . | . . Authchips . | . . Time . | . . Total Part Build Rating . | . . Part Studies Acquired . | . . Parts Repaired . | . . Time . | . . Parts Recycled . | . . Recycled Matter . | . . Retrieved Matter . | . . Retrieved Components . | . . Parts Scanalyzed . | . . Part Schematics Acquired . | . . Parts Damaged . | . . Bothacking | -11 -10 ------------ Run | Yrd Mat Used RIF Installer . | . . Robots Hacked . | . . Non-combat . | . . Combat . | . . Robot Hacks Applied . | . . Relay Couplers Released . | . . Fabnet Peak Effective % . | . . Robots Rewired . | . . Allies Hacked . | . . Hacks Repelled . | . . Allies | -11 -10 -------- Run | Yrd Mat Total Allies . | . . Largest Group . | . . Highest-Rated Group . | . . Highest-Rated Ally . | . . Total Orders . | . . Ally Attacks . | . . Total Damage . | . . Kills . | . . Allies Corrupted . | . . Allies Melted . | . . Intel | -11 -10 ------- Run | Yrd Mat Active Infowar (turns) . | . . Robot Analysis Total . | . . Derelict Logs Recovered . | . . Drone Launches . | . . Drone Recoveries . | . . Exploration | -11 -10 ------------- Run | Yrd Mat Turns Passed 714 | . 714 Spaces Moved 271 | 1 270 Core 2 | . 2 Treads 208 | . 208 Legs 54 | 1 53 Wheels 7 | . 7 Hover . | . . Flight . | . . Fastest Speed 95 | 120 95 Average Speed 207 | 120 208 Slowest Speed 240 | 120 240 Overloaded Moves . | . . Propulsion Burnouts . | . . Robots Hopped . | . . Potential Cave-ins . | . . Cave-ins Triggered . | . . Exploration Rate (%) 28 | 2 54 Regions Visited 1 Branch Regions . Pre-discovered Areas . | . . Known Exits Taken . | . . Unknown Exits Taken 1 | 1 . Scrap Searched . | . . Spaces Dug . | . . Terrain Destroyed . | . . Melee . | . . Projectile . | . . AOE . | . . Terrain Rammed . | . . Walls Destroyed . | . . Machines Disabled . | . . Actions | -11 -10 --------- Run | Yrd Mat Total 364 | . 364 Wait 14 | . 14 Move 270 | . 270 Hop . | . . Pick Up 19 | . 19 Fast Attach . | . . Attach 12 | . 12 Detach . | . . Swap . | . . Drop 2 | . 2 Fire 47 | . 47 Melee . | . . Ram . | . . Kick . | . . Crush . | . . Escape Stasis . | . . Rewire . | . . Trap . | . . Miscellaneous . | . . Route ------- -11/Scrapyard -10/Materials (discovered 3 exits: [*Mat x2] / [*Min]) History --------- Turn | Location | Event 1 | -11/Scrapyard | Discovered new exit (range 0) 1 | -11/Scrapyard | Entered Materials 118 | -10/Materials | Core integrity fell below 50% 153 | -10/Materials | Core integrity fell below 20% 193 | -10/Materials | Lost 9 parts (2p4n3w) 318 | -10/Materials | Build established: Mutant 401 | -10/Materials | Discovered new exit (range 7) 544 | -10/Materials | Discovered new exit (range 16) 704 | -10/Materials | Discovered new exit (range 14) 715 | -10/Materials | Destroyed by G-34 Mercenary with Small Laser Last Messages --------------- 00420_ R-06 Scavenger inserts Flight Unit into recycling unit. 00523_ Acquired Wheel. 00534_ Acquired Ion Engine. 00544_ EXIT=FOUND 00588_ Acquired Ion Engine. 00591_ Connecting with Terminal... >>Layout(Zone) Retrieving Zone 3B layout... Downloaded map data. >>Alert(Check) Current Alert Level: Low Security 00676_ W-16 Scout destroyed. 00698_ Acquired Visual Processing Unit. 00699_ Acquired 18 matter. 00704_ EXIT=FOUND 00706_ R-06 Scavenger collects Hover Unit. 00709_ Acquired Grenade Launcher. 00710_ R-06 Scavenger collects Lgt. Ion Engine. 00712_ Acquired Grenade Launcher. Map ----- +----------------------------------------------------+ | | | | | | | ???????????????###########???????????????????????? | | ???????????????# #???????????????????????? | | ???????????????#= #???????????????????????? | | ???????????????# ! #???????????????????????? | | ???????????????# != #???????????#######?????? | | ??##################+################# #?????? | | ??# #?????? | | ??# < #?????? | | ??# #?????? | | ######+############## ############## #?????? | | # # # #??## ##?????? | | """ ""# """ # # """ """ #???# #??????? | | """ T"# """ + # """ """ #???# #??????# | | """ ""# """ # # """ """ #???# #??????# | | # # + #???# #??????# | | ############ """ # # #??## ##?????# | | ???????????# """ # # #??# ###+### | | ???????????# """ # # #??# | | ???????????# # ###+########## | | ???????????########## g | | ????????????????????# g ####### | | ????????????????????# ||] #?????# | | ????????????????????# | @ """ """ """ #?????# | | ####?????????######## | """ """ """ #?????# | | #?????????# # """ """ """ ####### | | #?????????# """ # # | | #?????????# """ + + | | ########### """ # r#######""T""### # | | ????????????????????# ???????""""?#?##+####### # | | ????????????????????# ?????????#????? ??????# # | | ????????????????????# ???????????????""??????# # | | ????????????????????# ???????????????????????# # | | ????????????????????# ????????????????"????### # | | ????????????????????# ???????????????? ???+^^ # | | ???????????????????? ???????????????? ??### # | | ???????????????????? u ????????????????? ????# # | | ???????????????????# ?????????????????" ????# # | | ???????????????????#